[Event "Titled Tuesday Blitz November 01 Early 2022"]
[White "Agasarov, Benik"]
[Black "Brown, Andrew"]
[WhiteFideId "13314823"]
[BlackFideId "3206513"]
[WhiteElo "2152"]
[BlackElo "2245"]
[Result "1-0"]
[Round "01"]
[TimeControl "180+1"]
[Date "2022.11.02"]
[WhiteClock "0:00:12"]
[BlackClock "0:00:03"]

1. d4 {[%clk 0:03:00]}  g6 {[%clk 0:02:59]} 2. c4 {[%clk 0:02:58]}  Bg7 {[%clk 0:02:59]} 3. Nc3 {[%clk 0:02:57]}  d6 {[%clk 0:02:58]} 4. Nf3 {[%clk 0:02:56]}  Nd7 {[%clk 0:02:59]} 5. g3 {[%clk 0:02:56]}  e5 {[%clk 0:02:58]} 6. Bg2 {[%clk 0:02:56]}  Ne7 {[%clk 0:02:57]} 7. O-O {[%clk 0:02:56]}  O-O {[%clk 0:02:49]} 8. e4 {[%clk 0:02:55]}  c6 {[%clk 0:02:34]} 9. b3 {[%clk 0:02:49]}  f5 {[%clk 0:02:32]} 10. Ba3 {[%clk 0:02:44]}  exd4 {[%clk 0:02:26]} 11. Nxd4 {[%clk 0:02:45]}  Nc5 {[%clk 0:02:23]} 12. exf5 {[%clk 0:02:41]}  Nxf5 {[%clk 0:02:17]} 13. Nce2 {[%clk 0:02:29]}  Nxd4 {[%clk 0:01:50]} 14. Nxd4 {[%clk 0:02:30]}  Qf6 {[%clk 0:01:46]} 15. Bb2 {[%clk 0:02:15]}  a5 {[%clk 0:01:37]} 16. Rb1 {[%clk 0:02:15]}  Qf7 {[%clk 0:01:36]} 17. Qd2 {[%clk 0:02:01]}  a4 {[%clk 0:01:27]} 18. b4 {[%clk 0:01:40]}  a3 {[%clk 0:01:20]} 19. bxc5 {[%clk 0:01:33]}  dxc5 {[%clk 0:01:18]} 20. Nxc6 {[%clk 0:01:20]}  axb2 {[%clk 0:00:56]} 21. Na5 {[%clk 0:00:59]}  Rxa5 {[%clk 0:00:43]} 22. Qxa5 {[%clk 0:00:59]}  Qxc4 {[%clk 0:00:39]} 23. Qd2 {[%clk 0:00:56]}  Qd4 {[%clk 0:00:37]} 24. Rfd1 {[%clk 0:00:31]}  Bf5 {[%clk 0:00:29]} 25. Qxd4 {[%clk 0:00:27]}  Bxd4 {[%clk 0:00:29]} 26. Rxd4 {[%clk 0:00:26]}  Bxb1 {[%clk 0:00:22]} 27. Rd2 {[%clk 0:00:26]}  Re8 {[%clk 0:00:17]} 28. Bd5+ {[%clk 0:00:26]}  Kg7 {[%clk 0:00:17]} 29. Rxb2 {[%clk 0:00:27]}  Re1+ {[%clk 0:00:12]} 30. Kg2 {[%clk 0:00:27]}  Kh6 {[%clk 0:00:08]} 31. Rxb7 {[%clk 0:00:22]}  Rc1 {[%clk 0:00:08]} 32. Rc7 {[%clk 0:00:20]}  Bd3 {[%clk 0:00:07]} 33. Bg8 {[%clk 0:00:20]}  Kg5 {[%clk 0:00:04]} 34. h4+ {[%clk 0:00:19]}  Kf6 {[%clk 0:00:03]} 35. Rf7+ {[%clk 0:00:16]}  Ke5 {[%clk 0:00:03]} 36. Rxh7 {[%clk 0:00:15]}  c4 {[%clk 0:00:03]} 37. Re7+ {[%clk 0:00:14]}  Kd4 {[%clk 0:00:04]} 38. Rd7+ {[%clk 0:00:13]}  Kc3 {[%clk 0:00:04]} 39. g4 {[%clk 0:00:13]}  Kd2 {[%clk 0:00:04]} 40. Bd5 {[%clk 0:00:11]}  c3 {[%clk 0:00:05]} 41. Be4 {[%clk 0:00:12]}  Ke1 {[%clk 0:00:03]} 1-0


[Site "https://www.chess.com"]

[Event "Titled Tuesday Blitz November 01 Early 2022"]
[White "Alhadad, Mahmoud"]
[Black "Manelyuk, Daniil"]
[WhiteFideId "11501863"]
[BlackFideId "44173920"]
[WhiteElo "1955"]
[BlackElo "2209"]
[Result "0-1"]
[Round "01"]
[TimeControl "180+1"]
[Date "2022.11.02"]
[WhiteClock "0:00:48"]
[BlackClock "0:00:32"]

1. e4 {[%clk 0:02:58]}  e6 {[%clk 0:02:52]} 2. Nc3 {[%clk 0:02:58]}  d5 {[%clk 0:02:52]} 3. Nf3 {[%clk 0:02:58]}  dxe4 {[%clk 0:02:49]} 4. Nxe4 {[%clk 0:02:58]}  Be7 {[%clk 0:02:45]} 5. d4 {[%clk 0:02:57]}  Nd7 {[%clk 0:02:44]} 6. Bd3 {[%clk 0:02:56]}  Ngf6 {[%clk 0:02:45]} 7. O-O {[%clk 0:02:55]}  Nxe4 {[%clk 0:02:43]} 8. Bxe4 {[%clk 0:02:56]}  Nf6 {[%clk 0:02:43]} 9. Bd3 {[%clk 0:02:55]}  O-O {[%clk 0:02:43]} 10. c3 {[%clk 0:02:54]}  c5 {[%clk 0:02:43]} 11. Be3 {[%clk 0:02:54]}  Nd5 {[%clk 0:02:37]} 12. Bd2 {[%clk 0:02:46]}  cxd4 {[%clk 0:02:37]} 13. Nxd4 {[%clk 0:02:42]}  e5 {[%clk 0:02:31]} 14. Qh5 {[%clk 0:02:32]}  f5 {[%clk 0:02:07]} 15. Nxf5 {[%clk 0:02:29]}  Rxf5 {[%clk 0:01:20]} 16. Bxf5 {[%clk 0:02:26]}  Nf6 {[%clk 0:01:20]} 17. Bxh7+ {[%clk 0:02:18]}  Nxh7 {[%clk 0:01:06]} 18. Qxe5 {[%clk 0:02:16]}  Bf6 {[%clk 0:01:01]} 19. Qe2 {[%clk 0:02:08]}  Bf5 {[%clk 0:00:57]} 20. Be3 {[%clk 0:01:36]}  Bd3 {[%clk 0:00:53]} 21. Qf3 {[%clk 0:01:33]}  Bxf1 {[%clk 0:00:52]} 22. Rxf1 {[%clk 0:01:34]}  Qc7 {[%clk 0:00:48]} 23. Qd5+ {[%clk 0:01:31]}  Kh8 {[%clk 0:00:47]} 24. Qh5 {[%clk 0:00:55]}  Rd8 {[%clk 0:00:44]} 25. h4 {[%clk 0:00:52]}  Qc4 {[%clk 0:00:38]} 26. g3 {[%clk 0:00:48]}  Qxa2 {[%clk 0:00:33]} 27. Qf7 {[%clk 0:00:48]}  Qxf7 {[%clk 0:00:32]} 0-1


[Site "https://www.chess.com"]

[Event "Titled Tuesday Blitz November 01 Early 2022"]
[White "Azarov, Sergei"]
[Black "Rangel, Daniel"]
[WhiteFideId "13501470"]
[BlackFideId "2124475"]
[WhiteElo "2494"]
[BlackElo "2225"]
[Result "1-0"]
[Round "01"]
[TimeControl "180+1"]
[Date "2022.11.02"]
[WhiteClock "0:00:15"]
[BlackClock "0:00:18"]

1. e4 {[%clk 0:03:00]}  c5 {[%clk 0:02:59]} 2. Nf3 {[%clk 0:03:00]}  g6 {[%clk 0:02:58]} 3. d4 {[%clk 0:03:00]}  cxd4 {[%clk 0:02:57]} 4. Nxd4 {[%clk 0:03:00]}  Bg7 {[%clk 0:02:58]} 5. c4 {[%clk 0:03:00]}  Nc6 {[%clk 0:02:58]} 6. Be3 {[%clk 0:03:00]}  d6 {[%clk 0:02:58]} 7. Nc3 {[%clk 0:03:00]}  Nf6 {[%clk 0:02:57]} 8. Be2 {[%clk 0:03:00]}  O-O {[%clk 0:02:57]} 9. O-O {[%clk 0:02:59]}  Nxd4 {[%clk 0:02:58]} 10. Bxd4 {[%clk 0:02:58]}  Bd7 {[%clk 0:02:58]} 11. Qd3 {[%clk 0:02:53]}  Bc6 {[%clk 0:02:58]} 12. Rad1 {[%clk 0:02:48]}  Nd7 {[%clk 0:02:54]} 13. Bxg7 {[%clk 0:02:44]}  Kxg7 {[%clk 0:02:55]} 14. Kh1 {[%clk 0:02:40]}  a5 {[%clk 0:02:44]} 15. f4 {[%clk 0:02:39]}  Qb6 {[%clk 0:02:35]} 16. Rd2 {[%clk 0:02:00]}  Nc5 {[%clk 0:02:25]} 17. Qd4+ {[%clk 0:01:49]}  f6 {[%clk 0:02:05]} 18. Bf3 {[%clk 0:01:44]}  Rfd8 {[%clk 0:01:51]} 19. Nd5 {[%clk 0:01:39]}  Bxd5 {[%clk 0:01:49]} 20. exd5 {[%clk 0:01:39]}  Nd7 {[%clk 0:01:46]} 21. Qe4 {[%clk 0:01:29]}  Re8 {[%clk 0:01:44]} 22. Re2 {[%clk 0:01:16]}  f5 {[%clk 0:01:41]} 23. Qd3 {[%clk 0:01:12]}  Nf6 {[%clk 0:01:34]} 24. Rfe1 {[%clk 0:01:12]}  Kf7 {[%clk 0:01:32]} 25. h3 {[%clk 0:01:08]}  h5 {[%clk 0:01:29]} 26. Re6 {[%clk 0:01:03]}  Rac8 {[%clk 0:01:17]} 27. b3 {[%clk 0:00:59]}  Qf2 {[%clk 0:01:14]} 28. R6e2 {[%clk 0:00:47]}  Qg3 {[%clk 0:01:13]} 29. Qd4 {[%clk 0:00:39]}  Rc7 {[%clk 0:01:04]} 30. a3 {[%clk 0:00:32]}  Ng4 {[%clk 0:00:56]} 31. Bxg4 {[%clk 0:00:26]}  hxg4 {[%clk 0:00:57]} 32. Re3 {[%clk 0:00:25]}  Qh4 {[%clk 0:00:48]} 33. R1e2 {[%clk 0:00:20]}  gxh3 {[%clk 0:00:38]} 34. Rxh3 {[%clk 0:00:19]}  Qf6 {[%clk 0:00:38]} 35. Rh7+ {[%clk 0:00:19]}  Kg8 {[%clk 0:00:35]} 36. Qxf6 {[%clk 0:00:18]}  exf6 {[%clk 0:00:35]} 37. Rxc7 {[%clk 0:00:17]}  Rxe2 {[%clk 0:00:34]} 38. Rxb7 {[%clk 0:00:17]}  Re3 {[%clk 0:00:26]} 39. b4 {[%clk 0:00:16]}  Rxa3 {[%clk 0:00:24]} 40. c5 {[%clk 0:00:16]}  dxc5 {[%clk 0:00:20]} 41. bxc5 {[%clk 0:00:16]}  Rc3 {[%clk 0:00:19]} 42. d6 {[%clk 0:00:16]}  Kf8 {[%clk 0:00:18]} 43. Rb8+ {[%clk 0:00:14]}  Kf7 {[%clk 0:00:18]} 44. d7 {[%clk 0:00:15]} 1-0


[Site "https://www.chess.com"]

[Event "Titled Tuesday Blitz November 01 Early 2022"]
[White "Bagwe Gaurang"]
[Black "Zhigalko, Sergei"]
[WhiteFideId "45039895"]
[BlackFideId "13502956"]
[WhiteElo "1931"]
[BlackElo "2662"]
[Result "0-1"]
[Round "01"]
[TimeControl "180+1"]
[Date "2022.11.02"]
[WhiteClock "0:00:18"]
[BlackClock "0:00:39"]

1. e4 {[%clk 0:03:00]}  c5 {[%clk 0:02:59]} 2. Nf3 {[%clk 0:03:00]}  Nc6 {[%clk 0:03:00]} 3. c3 {[%clk 0:02:59]}  Nf6 {[%clk 0:02:54]} 4. e5 {[%clk 0:02:59]}  Nd5 {[%clk 0:02:54]} 5. d4 {[%clk 0:03:00]}  cxd4 {[%clk 0:02:52]} 6. cxd4 {[%clk 0:03:00]}  d6 {[%clk 0:02:52]} 7. exd6 {[%clk 0:03:00]}  Qxd6 {[%clk 0:02:52]} 8. Bd3 {[%clk 0:03:00]}  Bg4 {[%clk 0:02:52]} 9. Nc3 {[%clk 0:02:52]}  e6 {[%clk 0:02:52]} 10. O-O {[%clk 0:02:35]}  Be7 {[%clk 0:02:52]} 11. Be3 {[%clk 0:02:29]}  O-O {[%clk 0:02:49]} 12. h3 {[%clk 0:02:27]}  Bh5 {[%clk 0:02:47]} 13. Ne4 {[%clk 0:02:27]}  Qd8 {[%clk 0:02:40]} 14. Ng3 {[%clk 0:02:25]}  Bg6 {[%clk 0:02:40]} 15. Rc1 {[%clk 0:02:24]}  Rc8 {[%clk 0:02:38]} 16. Bxg6 {[%clk 0:02:19]}  hxg6 {[%clk 0:02:38]} 17. Bd2 {[%clk 0:02:15]}  Qb6 {[%clk 0:02:37]} 18. Bc3 {[%clk 0:02:12]}  Rfd8 {[%clk 0:02:34]} 19. Ne4 {[%clk 0:02:00]}  Qa6 {[%clk 0:02:28]} 20. Qb3 {[%clk 0:01:56]}  Nf4 {[%clk 0:02:24]} 21. Kh2 {[%clk 0:01:38]}  Nd5 {[%clk 0:01:42]} 22. Bd2 {[%clk 0:01:31]}  Qb6 {[%clk 0:01:30]} 23. Qxb6 {[%clk 0:01:19]}  Nxb6 {[%clk 0:01:22]} 24. Be3 {[%clk 0:01:06]}  Nd5 {[%clk 0:01:18]} 25. Nc5 {[%clk 0:01:06]}  b6 {[%clk 0:01:06]} 26. Na6 {[%clk 0:00:52]}  Bd6+ {[%clk 0:00:52]} 27. Kg1 {[%clk 0:00:45]}  Ncb4 {[%clk 0:00:50]} 28. Nxb4 {[%clk 0:00:30]}  Nxb4 {[%clk 0:00:50]} 29. b3 {[%clk 0:00:20]}  Nxa2 {[%clk 0:00:44]} 30. Rxc8 {[%clk 0:00:18]}  Rxc8 {[%clk 0:00:44]} 31. Ra1 {[%clk 0:00:19]}  Rc2 {[%clk 0:00:40]} 32. Ne1 {[%clk 0:00:19]}  Rb2 {[%clk 0:00:41]} 33. Nd3 {[%clk 0:00:18]}  Rxb3 {[%clk 0:00:41]} 34. Rxa2 {[%clk 0:00:18]}  Rxd3 {[%clk 0:00:41]} 35. Rxa7 {[%clk 0:00:18]}  Rd1# {[%clk 0:00:39]} 0-1


[Site "https://www.chess.com"]

[Event "Titled Tuesday Blitz November 01 Early 2022"]
[White "Balkum, Alexander"]
[Black "Skliarov, Viktor"]
[WhiteFideId "2005069"]
[BlackFideId "14106736"]
[WhiteElo "2316"]
[BlackElo "2284"]
[Result "1-0"]
[Round "01"]
[TimeControl "180+1"]
[Date "2022.11.02"]
[WhiteClock "0:00:18"]
[BlackClock "0:00:14"]

1. e4 {[%clk 0:02:54]}  c5 {[%clk 0:02:58]} 2. Nf3 {[%clk 0:02:53]}  Nc6 {[%clk 0:02:58]} 3. d4 {[%clk 0:02:54]}  cxd4 {[%clk 0:02:58]} 4. Nxd4 {[%clk 0:02:55]}  Nf6 {[%clk 0:02:58]} 5. Nc3 {[%clk 0:02:54]}  e5 {[%clk 0:02:58]} 6. Ndb5 {[%clk 0:02:55]}  d6 {[%clk 0:02:57]} 7. Bg5 {[%clk 0:02:55]}  a6 {[%clk 0:02:55]} 8. Na3 {[%clk 0:02:55]}  b5 {[%clk 0:02:55]} 9. Bxf6 {[%clk 0:02:55]}  gxf6 {[%clk 0:02:55]} 10. Nd5 {[%clk 0:02:55]}  f5 {[%clk 0:02:53]} 11. c3 {[%clk 0:02:55]}  Bg7 {[%clk 0:02:53]} 12. exf5 {[%clk 0:02:55]}  Bxf5 {[%clk 0:02:54]} 13. Nc2 {[%clk 0:02:55]}  O-O {[%clk 0:02:54]} 14. Nce3 {[%clk 0:02:55]}  Be6 {[%clk 0:02:55]} 15. Bd3 {[%clk 0:02:55]}  f5 {[%clk 0:02:55]} 16. O-O {[%clk 0:02:55]}  Ra7 {[%clk 0:02:44]} 17. a4 {[%clk 0:02:52]}  bxa4 {[%clk 0:02:33]} 18. Rxa4 {[%clk 0:01:54]}  e4 {[%clk 0:02:30]} 19. Bc2 {[%clk 0:01:52]}  Qg5 {[%clk 0:02:12]} 20. f4 {[%clk 0:01:35]}  Qg6 {[%clk 0:01:56]} 21. Bb3 {[%clk 0:01:25]}  Kh8 {[%clk 0:01:54]} 22. Kh1 {[%clk 0:01:25]}  Bh6 {[%clk 0:01:45]} 23. g3 {[%clk 0:01:22]}  Rb8 {[%clk 0:01:39]} 24. Nb4 {[%clk 0:00:47]}  Bxb3 {[%clk 0:01:10]} 25. Qxb3 {[%clk 0:00:47]}  a5 {[%clk 0:01:10]} 26. Qa2 {[%clk 0:00:36]}  Nxb4 {[%clk 0:00:39]} 27. cxb4 {[%clk 0:00:36]}  Rab7 {[%clk 0:00:40]} 28. Rxa5 {[%clk 0:00:28]}  Rxb4 {[%clk 0:00:39]} 29. Ra8 {[%clk 0:00:27]}  Bf8 {[%clk 0:00:29]} 30. Rxb8 {[%clk 0:00:19]}  Rxb8 {[%clk 0:00:28]} 31. Qd5 {[%clk 0:00:18]}  Rxb2 {[%clk 0:00:26]} 32. Nxf5 {[%clk 0:00:18]}  Qf6 {[%clk 0:00:19]} 33. Qxe4 {[%clk 0:00:18]}  h5 {[%clk 0:00:19]} 34. Qd4 {[%clk 0:00:16]}  Qxd4 {[%clk 0:00:18]} 35. Nxd4 {[%clk 0:00:17]}  Bg7 {[%clk 0:00:19]} 36. Nf5 {[%clk 0:00:17]}  d5 {[%clk 0:00:17]} 37. Nxg7 {[%clk 0:00:17]}  Kxg7 {[%clk 0:00:17]} 38. Rd1 {[%clk 0:00:18]}  Rb5 {[%clk 0:00:13]} 39. Kg2 {[%clk 0:00:18]}  Kf6 {[%clk 0:00:13]} 40. Kh3 {[%clk 0:00:18]}  Ke6 {[%clk 0:00:11]} 41. Kh4 {[%clk 0:00:18]}  Rb2 {[%clk 0:00:12]} 42. h3 {[%clk 0:00:18]}  Rg2 {[%clk 0:00:12]} 43. g4 {[%clk 0:00:18]}  hxg4 {[%clk 0:00:12]} 44. hxg4 {[%clk 0:00:19]}  Kd6 {[%clk 0:00:12]} 45. Kg5 {[%clk 0:00:19]}  Kc5 {[%clk 0:00:12]} 46. f5 {[%clk 0:00:19]}  d4 {[%clk 0:00:13]} 47. f6 {[%clk 0:00:20]}  Kc4 {[%clk 0:00:12]} 48. f7 {[%clk 0:00:18]}  Rf2 {[%clk 0:00:13]} 49. Kg6 {[%clk 0:00:19]}  Kd5 {[%clk 0:00:13]} 50. g5 {[%clk 0:00:17]}  Ke6 {[%clk 0:00:13]} 51. Rxd4 {[%clk 0:00:17]}  Rxf7 {[%clk 0:00:13]} 52. Re4+ {[%clk 0:00:17]}  Kd5 {[%clk 0:00:13]} 53. Kxf7 {[%clk 0:00:17]}  Kxe4 {[%clk 0:00:14]} 54. g6 {[%clk 0:00:18]} 1-0


[Site "https://www.chess.com"]

[Event "Titled Tuesday Blitz November 01 Early 2022"]
[White "Barria Zuniga, Daniel"]
[Black "Eisa Mohmood, Alkhoori"]
[WhiteFideId "3400816"]
[BlackFideId "9316116"]
[WhiteElo "2414"]
[BlackElo "1245"]
[Result "0-1"]
[Round "01"]
[TimeControl "180+1"]
[Date "2022.11.02"]
[WhiteClock "0:01:32"]
[BlackClock "0:01:33"]

1. d4 {[%clk 0:02:58]}  Nf6 {[%clk 0:02:59]} 2. c4 {[%clk 0:02:58]}  g6 {[%clk 0:02:59]} 3. Nc3 {[%clk 0:02:59]}  d5 {[%clk 0:03:00]} 4. Bf4 {[%clk 0:02:55]}  Bg7 {[%clk 0:03:00]} 5. e3 {[%clk 0:02:55]}  O-O {[%clk 0:03:00]} 6. Rc1 {[%clk 0:02:56]}  c6 {[%clk 0:02:52]} 7. h3 {[%clk 0:02:54]}  a6 {[%clk 0:02:40]} 8. Nf3 {[%clk 0:02:54]}  dxc4 {[%clk 0:02:32]} 9. Bxc4 {[%clk 0:02:55]}  b5 {[%clk 0:02:33]} 10. Bd3 {[%clk 0:02:38]}  Bb7 {[%clk 0:02:27]} 11. O-O {[%clk 0:02:38]}  Nbd7 {[%clk 0:02:17]} 12. a4 {[%clk 0:02:28]}  b4 {[%clk 0:02:12]} 13. Ne4 {[%clk 0:02:28]}  Nxe4 {[%clk 0:02:03]} 14. Bxe4 {[%clk 0:02:28]}  Rc8 {[%clk 0:02:01]} 15. Qb3 {[%clk 0:01:52]}  a5 {[%clk 0:01:50]} 16. Rfd1 {[%clk 0:01:51]}  e6 {[%clk 0:01:50]} 17. Bd6 {[%clk 0:01:48]}  Re8 {[%clk 0:01:45]} 18. Ne5 {[%clk 0:01:48]}  Nf6 {[%clk 0:01:40]} 19. Nxc6 {[%clk 0:01:32]}  Qxd6 {[%clk 0:01:33]} 0-1


[Site "https://www.chess.com"]

[Event "Titled Tuesday Blitz November 01 Early 2022"]
[White "Bazeev, German"]
[Black "Sanchez, Robert"]
[WhiteFideId "24119350"]
[BlackFideId "2034360"]
[WhiteElo "2493"]
[BlackElo "2404"]
[Result "1-0"]
[Round "01"]
[TimeControl "180+1"]
[Date "2022.11.02"]
[WhiteClock "0:00:43"]
[BlackClock "0:00:31"]

1. e4 {[%clk 0:03:00]}  e6 {[%clk 0:02:59]} 2. Nf3 {[%clk 0:02:59]}  c5 {[%clk 0:02:58]} 3. d3 {[%clk 0:02:59]}  d6 {[%clk 0:02:58]} 4. c4 {[%clk 0:02:59]}  Nc6 {[%clk 0:02:57]} 5. Nc3 {[%clk 0:03:00]}  Nge7 {[%clk 0:02:57]} 6. Be2 {[%clk 0:02:57]}  g6 {[%clk 0:02:57]} 7. h4 {[%clk 0:02:57]}  h6 {[%clk 0:02:56]} 8. h5 {[%clk 0:02:57]}  g5 {[%clk 0:02:56]} 9. b3 {[%clk 0:02:54]}  Bg7 {[%clk 0:02:51]} 10. Bb2 {[%clk 0:02:54]}  Qa5 {[%clk 0:02:39]} 11. Qd2 {[%clk 0:02:53]}  O-O {[%clk 0:02:30]} 12. Rb1 {[%clk 0:02:23]}  f5 {[%clk 0:02:11]} 13. O-O {[%clk 0:02:06]}  f4 {[%clk 0:02:05]} 14. Nb5 {[%clk 0:02:01]}  Qd8 {[%clk 0:01:50]} 15. Bxg7 {[%clk 0:01:57]}  Kxg7 {[%clk 0:01:51]} 16. d4 {[%clk 0:01:51]}  a6 {[%clk 0:01:47]} 17. dxc5 {[%clk 0:01:51]}  axb5 {[%clk 0:01:42]} 18. cxd6 {[%clk 0:01:51]}  Ng8 {[%clk 0:01:37]} 19. cxb5 {[%clk 0:01:50]}  Nb8 {[%clk 0:01:32]} 20. e5 {[%clk 0:01:50]}  Nd7 {[%clk 0:01:28]} 21. Rbc1 {[%clk 0:01:09]}  Rf7 {[%clk 0:01:23]} 22. Rc7 {[%clk 0:01:02]}  b6 {[%clk 0:01:22]} 23. Qc2 {[%clk 0:00:58]}  Nf8 {[%clk 0:01:12]} 24. Rxf7+ {[%clk 0:00:52]}  Kxf7 {[%clk 0:01:13]} 25. Nd4 {[%clk 0:00:52]}  Kg7 {[%clk 0:01:02]} 26. Bg4 {[%clk 0:00:46]}  Qe8 {[%clk 0:01:00]} 27. a4 {[%clk 0:00:45]}  Bd7 {[%clk 0:00:53]} 28. Rc1 {[%clk 0:00:43]}  Rc8 {[%clk 0:00:51]} 29. Qd2 {[%clk 0:00:44]}  Rxc1+ {[%clk 0:00:35]} 30. Qxc1 {[%clk 0:00:45]}  Qc8 {[%clk 0:00:35]} 31. Qxc8 {[%clk 0:00:44]}  Bxc8 {[%clk 0:00:35]} 32. b4 {[%clk 0:00:44]}  Bd7 {[%clk 0:00:34]} 33. a5 {[%clk 0:00:44]}  Bc8 {[%clk 0:00:31]} 34. a6 {[%clk 0:00:43]}  Kf7 {[%clk 0:00:31]} 35. Bf3 {[%clk 0:00:43]} 1-0


[Site "https://www.chess.com"]

[Event "Titled Tuesday Blitz November 01 Early 2022"]
[White "Beerdsen, Thomas"]
[Black "Aaditya Dhingra"]
[WhiteFideId "1030108"]
[BlackFideId "25678191"]
[WhiteElo "2567"]
[BlackElo "2054"]
[Result "1-0"]
[Round "01"]
[TimeControl "180+1"]
[Date "2022.11.02"]
[WhiteClock "0:00:20"]
[BlackClock "0:00:15"]

1. e4 {[%clk 0:02:51]}  e5 {[%clk 0:02:57]} 2. Bc4 {[%clk 0:02:50]}  Nf6 {[%clk 0:02:56]} 3. d3 {[%clk 0:02:50]}  c6 {[%clk 0:02:55]} 4. Nf3 {[%clk 0:02:50]}  d5 {[%clk 0:02:52]} 5. Bb3 {[%clk 0:02:51]}  Bd6 {[%clk 0:02:51]} 6. Nc3 {[%clk 0:02:47]}  d4 {[%clk 0:02:48]} 7. Ne2 {[%clk 0:02:44]}  O-O {[%clk 0:02:48]} 8. O-O {[%clk 0:02:41]}  a5 {[%clk 0:02:44]} 9. c3 {[%clk 0:02:38]}  c5 {[%clk 0:02:42]} 10. cxd4 {[%clk 0:02:37]}  cxd4 {[%clk 0:02:40]} 11. Nexd4 {[%clk 0:02:22]}  exd4 {[%clk 0:02:39]} 12. e5 {[%clk 0:02:23]}  Be7 {[%clk 0:02:39]} 13. exf6 {[%clk 0:02:23]}  Bxf6 {[%clk 0:02:40]} 14. Bf4 {[%clk 0:02:17]}  Nc6 {[%clk 0:02:40]} 15. Rc1 {[%clk 0:02:13]}  Bf5 {[%clk 0:02:37]} 16. a3 {[%clk 0:02:07]}  Qd7 {[%clk 0:02:15]} 17. Ba4 {[%clk 0:02:03]}  Qd5 {[%clk 0:02:08]} 18. h3 {[%clk 0:01:49]}  Bg6 {[%clk 0:02:03]} 19. Re1 {[%clk 0:01:44]}  Rac8 {[%clk 0:01:50]} 20. Bb3 {[%clk 0:01:36]}  Qf5 {[%clk 0:01:48]} 21. Re4 {[%clk 0:01:28]}  Qb5 {[%clk 0:01:43]} 22. Bc4 {[%clk 0:01:25]}  Qxb2 {[%clk 0:01:41]} 23. Re2 {[%clk 0:01:05]}  Qxa3 {[%clk 0:01:35]} 24. Rb1 {[%clk 0:01:05]}  Rfe8 {[%clk 0:01:10]} 25. Rxb7 {[%clk 0:01:00]}  Nb4 {[%clk 0:01:05]} 26. Bd6 {[%clk 0:00:48]}  h6 {[%clk 0:00:52]} 27. Kh2 {[%clk 0:00:44]}  Red8 {[%clk 0:00:44]} 28. Be7 {[%clk 0:00:43]}  Bxe7 {[%clk 0:00:43]} 29. Rexe7 {[%clk 0:00:43]}  Nxd3 {[%clk 0:00:36]} 30. Bxf7+ {[%clk 0:00:40]}  Bxf7 {[%clk 0:00:36]} 31. Rxf7 {[%clk 0:00:41]}  Qd6+ {[%clk 0:00:35]} 32. g3 {[%clk 0:00:41]}  Nxf2 {[%clk 0:00:24]} 33. Rxg7+ {[%clk 0:00:41]}  Kh8 {[%clk 0:00:25]} 34. Rh7+ {[%clk 0:00:29]}  Kg8 {[%clk 0:00:24]} 35. Qb3+ {[%clk 0:00:30]}  Qd5 {[%clk 0:00:22]} 36. Ne5 {[%clk 0:00:18]}  Qxb3 {[%clk 0:00:16]} 37. Rbg7+ {[%clk 0:00:18]}  Kf8 {[%clk 0:00:16]} 38. Ng6+ {[%clk 0:00:19]}  Ke8 {[%clk 0:00:15]} 39. Re7# {[%clk 0:00:20]} 1-0


[Site "https://www.chess.com"]

[Event "Titled Tuesday Blitz November 01 Early 2022"]
[White "Borgaonkar Akshay"]
[Black "Le, Tuan Minh"]
[WhiteFideId "25639110"]
[BlackFideId "12401153"]
[WhiteElo "2063"]
[BlackElo "2530"]
[Result "0-1"]
[Round "01"]
[TimeControl "180+1"]
[Date "2022.11.01"]
[WhiteClock "0:00:53"]
[BlackClock "0:01:24"]

1. e4 {[%clk 0:02:56]}  c5 {[%clk 0:03:00]} 2. d4 {[%clk 0:02:53]}  cxd4 {[%clk 0:02:57]} 3. c3 {[%clk 0:02:53]}  Nf6 {[%clk 0:02:56]} 4. e5 {[%clk 0:02:52]}  Nd5 {[%clk 0:02:56]} 5. Nf3 {[%clk 0:02:52]}  Nc6 {[%clk 0:02:56]} 6. cxd4 {[%clk 0:02:52]}  d6 {[%clk 0:02:57]} 7. Bc4 {[%clk 0:02:47]}  dxe5 {[%clk 0:02:57]} 8. dxe5 {[%clk 0:02:44]}  Ndb4 {[%clk 0:02:56]} 9. Qxd8+ {[%clk 0:02:37]}  Nxd8 {[%clk 0:02:57]} 10. Na3 {[%clk 0:02:32]}  a6 {[%clk 0:02:55]} 11. Bd2 {[%clk 0:02:28]}  e6 {[%clk 0:02:54]} 12. O-O {[%clk 0:02:27]}  b5 {[%clk 0:02:54]} 13. Bb3 {[%clk 0:02:24]}  Bb7 {[%clk 0:02:54]} 14. Nd4 {[%clk 0:02:17]}  Nbc6 {[%clk 0:02:50]} 15. Nxc6 {[%clk 0:02:12]}  Nxc6 {[%clk 0:02:51]} 16. f4 {[%clk 0:02:09]}  Bc5+ {[%clk 0:02:46]} 17. Kh1 {[%clk 0:02:08]}  Rd8 {[%clk 0:02:46]} 18. Rad1 {[%clk 0:02:03]}  O-O {[%clk 0:02:38]} 19. Nc2 {[%clk 0:02:00]}  Rd3 {[%clk 0:01:57]} 20. Ne1 {[%clk 0:01:52]}  Rd7 {[%clk 0:01:53]} 21. Nf3 {[%clk 0:01:48]}  Rfd8 {[%clk 0:01:51]} 22. a3 {[%clk 0:01:42]}  Ne7 {[%clk 0:01:30]} 23. Bc3 {[%clk 0:01:40]}  Rxd1 {[%clk 0:01:31]} 24. Rxd1 {[%clk 0:01:39]}  Rxd1+ {[%clk 0:01:31]} 25. Bxd1 {[%clk 0:01:39]}  Be3 {[%clk 0:01:32]} 26. g3 {[%clk 0:01:31]}  Nd5 {[%clk 0:01:32]} 27. Be1 {[%clk 0:01:27]}  Bc1 {[%clk 0:01:31]} 28. a4 {[%clk 0:01:15]}  bxa4 {[%clk 0:01:27]} 29. Kg1 {[%clk 0:01:00]}  Ne3 {[%clk 0:01:26]} 30. Be2 {[%clk 0:00:59]}  Bxb2 {[%clk 0:01:26]} 31. Bf2 {[%clk 0:00:59]}  a3 {[%clk 0:01:23]} 32. Nd2 {[%clk 0:00:52]}  a2 {[%clk 0:01:23]} 33. Nb3 {[%clk 0:00:53]}  Bd5 {[%clk 0:01:24]} 0-1


[Site "https://www.chess.com"]